Cogmind - Beta 11 @@@ ROGUE MODE // 2022.03.20 @ 12:49:39 Player: lumberblack Result: Destroyed by as-05859 with Assembled Rifle Performance ------------- Evolutions (0) 0 Regions Visited (2) 400 Robots Destroyed (31) 155 Value Destroyed (780) 780 Prototype IDs (2) 40 Alien Tech Used (0) 0 Bonus (0) 0 TOTAL SCORE: 1375 Bonus ------- None Cogmind --------- Core Integrity 0/250 Matter 273/300 Energy 88/100 System Corruption 0% Temperature Cool (0) Movement Treading (160) Location -10/Mines Parts ------- > --- POWER (1) -------- (None) > --- PROPULSION (2) --- Light Treads > --- UTILITY (2) ------ (None) > --- WEAPON (2) ------- (None) > --- INVENTORY (5) ---- Improved Heat Sink Large Storage Unit High-capacity Battery (250) High-capacity Matter Pod (123) Small Laser Peak State ------------ > --- POWER ------------ Light Ion Engine > --- PROPULSION ------- Aluminum Leg Aluminum Leg > --- UTILITY ---------- Small Storage Unit Improved Terrain Scanner > --- WEAPON ----------- Assault Rifle Assault Rifle > --- INVENTORY -------- Ion Engine Light Treads Light Treads Compact Wheel Compact Wheel EM Pulse Gun [Rating: 9] Favorites ----------- Power Ion Engine Engine Ion Engine Propulsion Light Treads Treads Light Treads Leg Aluminum Leg Wheel Compact Wheel Utility Targeting Computer Device Improved Terrain Scanner Storage Large Storage Unit Processor Targeting Computer Weapon Assault Rifle Energy Gun Small Laser Energy Cannon Beam Cannon Ballistic Gun Assault Rifle Special Weapon Mining Laser Build | -11 -10 -10 ------- Run | Scr Mat Min Slots Evolved . | . . . Power . | . . . Propulsion . | . . . Utility . | . . . Weapon . | . . . Parts Attached 29 | 6 20 3 Power 3 | . 3 . Engine 3 | . 3 . Core . | . . . Reactor . | . . . Propulsion 15 | 4 8 3 Treads 10 | 1 6 3 Leg 4 | 2 2 . Wheel 1 | 1 . . Hover . | . . . Flight . | . . . Utility 3 | 1 2 . Device 1 | 1 . . Storage 1 | . 1 . Processor 1 | . 1 . Hackware . | . . . Protection . | . . . Artifact . | . . . Weapon 8 | 1 7 . Energy Gun 2 | . 2 . Energy Cannon 1 | . 1 . Ballistic Gun 4 | 1 3 . Ballistic Cannon . | . . . Launcher . | . . . Special Weapon 1 | . 1 . Impact Weapon . | . . . Slashing Weapon . | . . . Piercing Weapon . | . . . Special Melee Weapon . | . . . Unidentified Prototypes . | . . . Parts Lost 6 | . 3 3 Power 1 | . . 1 Propulsion 3 | . 1 2 Utility . | . . . Weapon 2 | . 2 . Highest Loss Streak 3 | . 2 3 To Critical Strikes . | . . . Average Slot Usage (%) 94 | . 94 91 Engine 13 | . 14 12 Treads 14 | . 13 25 Leg 10 | . 10 . Storage 13 | . 14 12 Processor 13 | . 13 12 Energy Gun 4 | . 4 . Energy Cannon 6 | . 6 12 Ballistic Gun 15 | . 15 12 Naked Turns 1 | . . 1 Heaviest Build 30 | 13 30 30 Greatest Support 40 | 20 40 40 Greatest Overweight (x) 2 | . 2 . Average Overweight (x) . | . . . Largest Inventory Capacity 15 | 8 15 15 Average Capacity 13 | 8 13 14 Most Carried 15 | 7 15 15 Average Carried 11 | 5 11 14 Final Capacity 15 | 8 15 5 Final Carried 15 | 6 15 5 Class Distribution -------------------- 96% | Mutant 3% | Scavenger-Mutant Dominant Class ---------------- Mutant | -10/Materials Mutant | -10/Mines Resources | -11 -10 -10 ----------- Run | Scr Mat Min Matter Collected 1082 | 284 798 . Remotely . | . . . Salvage Created 1164 | 78 1073 13 Parts 65 | 8 57 . Haulers Intercepted 2 | . 2 . Recyclers Shooed . | . . . Parts Field Recycled . | . . . Retrieved Matter . | . . . Parts Self-Destructed . | . . . Prevented . | . . . Kills | -11 -10 -10 ------- Run | Scr Mat Min Combat Hostiles Destroyed 23 | . 22 1 Guns 19 | . 18 1 Cannons 2 | . 2 . Classes Destroyed 8 | 2 5 1 Tunneler 2 | 1 1 . Hauler 2 | . 2 . Recycler 2 | 1 1 . Operator 2 | . 2 . Watcher 1 | . 1 . Swarmer 3 | . 3 . Grunt 19 | . 19 . Assembled 1 | . . 1 Best Kill Streak 7 | 2 7 1 Combat Bots Only 7 | . 7 1 Max Kills in Single Turn 2 | 1 2 1 Gunslinging . | . . . Exploded . | . . . Melee . | . . . Uniques/NPCs Destroyed . | . . . Combat | -11 -10 -10 -------- Run | Scr Mat Min Damage Taken 1459 | . 914 545 Core 250 | . 108 142 Absorbed by Shields . | . . . Regen/Repaired (Parts) 76 | . 76 . Core Remaining (%) 100 | 100 . . Volleys Fired 94 | 4 86 4 Largest 2 | 2 2 2 Hottest 100 | 40 100 80 Shots Fired 177 | 8 161 8 Gun 151 | 8 139 4 Cannon 25 | . 21 4 Launcher . | . . . Special 1 | . 1 . Kinetic 129 | 8 117 4 Thermal 48 | . 44 4 Explosive . | . . . Electromagnetic . | . . . Robot Hit Streak 13 | 6 13 5 Robot Miss Streak 7 | . 7 3 Penetration Max . | . . . Secondary Targets . | . . . Shots Hit Robots 105 | 6 94 5 Core Hits 49 | 3 43 3 Critical Kills 2 | . 2 . Critical Parts Destroyed . | . . . Critical Strikes 2 | . 2 . Meltdown 2 | . 2 . Melee Attacks . | . . . Impact . | . . . Slashing . | . . . Piercing . | . . . Sneak Attacks . | . . . Combat Hostiles . | . . . Follow-up Attacks . | . . . Damage Inflicted 1480 | 84 1292 104 Guns 1164 | 84 1032 48 Cannons 292 | . 240 52 Explosions . | . . . Melee . | . . . Ramming 24 | . 20 4 Kinetic 1010 | 84 878 48 Thermal 446 | . 394 52 Explosive . | . . . Electromagnetic . | . . . Impact . | . . . Slashing . | . . . Piercing . | . . . Highest Corruption . | . . . Average Corruption . | . . . Corruption Purged . | . . . Corruption Blocked . | . . . Overload Shots . | . . . Overflow Damage 25 | . 18 7 Projectiles 25 | . 18 7 Explosions . | . . . Melee . | . . . Knockbacks . | . . . Impact . | . . . Kinetic . | . . . Secondary . | . . . Self-Inflicted Damage . | . . . Shots . | . . . Rammed 6 | . 4 2 Targets Rammed 7 | . 5 2 Kicked . | . . . Crushed 1 | . 1 . Highest Temperature 162 | . 162 152 Average Temperature 49 | . 45 77 Received Heat Transfer 644 | . 444 200 Siege Activations . | . . . Robots Corrupted . | . . . Combat Hostiles . | . . . Parts Fried . | . . . Impact Corruptions . | . . . Robots Melted 2 | . 2 . Combat Hostiles 2 | . 2 . Parts Melted 3 | . 3 . Heat Transferred 917 | . 806 111 Parts Sabotaged . | . . . Parts Stolen . | . . . Parts Stripped . | . . . Power Chain Reactions . | . . . Missiles Intercepted . | . . . Alert | -11 -10 -10 ------- Run | Scr Mat Min Peak Influence 309 | 10 309 54 Initial 39 | . 6 39 Average 102 | 6 107 38 Maximum Alert Level 1 | . 1 . Low Security (%) 94 | 100 94 100 Level 1 5 | . 5 . Level 2 . | . . . Level 3 . | . . . Level 4 . | . . . Level 5 . | . . . High Security . | . . . Max Security . | . . . Squads Dispatched 8 | . 8 . Investigation 4 | . 4 . Extermination . | . . . Reinforcement 4 | . 4 . Assault . | . . . Garrison . | . . . Intercept . | . . . Searches Triggered . | . . . Construction Impeded . | . . . Haulers Reinforced . | . . . Active Scanning Responses . | . . . Cargo Convoy Interrupts . | . . . Stealth | -11 -10 -10 --------- Run | Scr Mat Min Distress Signals . | . . . Communications Jammed . | . . . Distress Signals . | . . . Times Spotted 64 | . 47 17 Peak Tracking Total 17 | . 5 17 Tactical Retreats . | . . . Traps | -11 -10 -10 ------- Run | Scr Mat Min Traps Triggered 3 | . 3 . Indirectly . | . . . Trap Hack Attempts . | . . . Triggered . | . . . Disarmed . | . . . Reprogrammed . | . . . Reused . | . . . Traps Extracted . | . . . Installed . | . . . Triggered . | . . . Machines | -11 -10 -10 ---------- Run | Scr Mat Min Machines Disabled . | . . . Max in Single Turn . | . . . Machines Sabotaged . | . . . Garrisons Compromised . | . . . Overloaded Fab Kills . | . . . Hacking | -11 -10 -10 --------- Run | Scr Mat Min Machines Accessed 8 | . 7 1 Terminals 5 | . 4 1 Fabricators . | . . . Repair Stations 1 | . 1 . Recycling Units 2 | . 2 . Scanalyzers . | . . . Garrison Access . | . . . Total Hacks 18 | . 16 2 Successful 12 | . 11 1 Failed 6 | . 5 1 Catastrophic 1 | . 1 . Database Lockouts . | . . . Manual 11 | . 9 2 Terminals 11 | . 9 2 Fabricators . | . . . Repair Stations 5 | . 5 . Recycling Units 2 | . 2 . Scanalyzers . | . . . Garrison Access . | . . . Terminal Hacks 6 | . 5 1 Robot Analysis 2 | . 2 . Prototype ID Bank 1 | . 1 . Terminal Index 1 | . 1 . Alert Level 1 | . 1 . Zone Layout 1 | . . 1 Fabricator Hacks . | . . . Repair Station Hacks 4 | . 4 . Scan Component 2 | . 2 . Repair 2 | . 2 . Recycling Unit Hacks 1 | . 1 . Report Inventory 1 | . 1 . Scanalyzer . | . . . Garrison Access Hacks . | . . . Unauthorized Hacks 1 | . 1 . Terminals . | . . . Fabricators . | . . . Repair Stations . | . . . Recycling Units 1 | . 1 . Tunnel 1 | . 1 . Scanalyzers . | . . . Garrison Access . | . . . Data Cores Recovered . | . . . Used . | . . . Hacking Detections 6 | . 5 1 Full Trace Events . | . . . Feedback Events . | . . . Feedback Blocked . | . . . Robot Schematics Acquired . | . . . Robots Built . | . . . Authchips . | . . . Time . | . . . Total Robot Build Rating . | . . . Part Schematics Acquired . | . . . Parts Built . | . . . Authchips . | . . . Time . | . . . Total Part Build Rating . | . . . Parts Repaired 2 | . 2 . Time 52 | . 52 . Parts Recycled . | . . . Recycled Matter . | . . . Retrieved Matter . | . . . Retrieved Components . | . . . Parts Scanalyzed . | . . . Part Schematics Acquired . | . . . Parts Damaged . | . . . Bothacking | -11 -10 -10 ------------ Run | Scr Mat Min Used RIF Installer . | . . . Robots Hacked . | . . . Non-combat . | . . . Combat . | . . . Robot Hacks Applied . | . . . Relay Couplers Released . | . . . Fabnet Peak Effective % . | . . . Robots Rewired . | . . . Allies Hacked . | . . . Hacks Repelled . | . . . Allies | -11 -10 -10 -------- Run | Scr Mat Min Total Allies . | . . . Largest Group . | . . . Highest-Rated Group . | . . . Highest-Rated Ally . | . . . Total Orders . | . . . Ally Attacks . | . . . Total Damage . | . . . Kills . | . . . Allies Corrupted . | . . . Allies Melted . | . . . Intel | -11 -10 -10 ------- Run | Scr Mat Min Robot Analysis Total 2 | . 2 . Derelict Logs Recovered . | . . . Drone Launches . | . . . Drone Recoveries . | . . . Exploration | -11 -10 -10 ------------- Run | Scr Mat Min Turns Passed 2198 | 44 2030 124 Spaces Moved 989 | 18 904 67 Core 2 | . . 2 Treads 512 | . 447 65 Legs 475 | 18 457 . Wheels . | . . . Hover . | . . . Flight . | . . . Fastest Speed 50 | 120 120 50 Average Speed 170 | 120 172 156 Slowest Speed 260 | 120 260 160 Overloaded Moves . | . . . Propulsion Burnouts . | . . . Robots Hopped . | . . . Cave-ins Triggered . | . . . Exploration Rate (%) 41 | 2 94 29 Regions Visited 2 Branch Regions 1 Pre-discovered Areas 1 | . 1 . Known Exits Taken . | . . . Unknown Exits Taken 2 | 1 1 . Scrap Searched . | . . . Spaces Dug 1 | . 1 . Terrain Destroyed 1 | . 1 . Melee . | . . . Projectile 1 | . 1 . AOE . | . . . Terrain Rammed . | . . . Walls Destroyed . | . . . Machines Disabled . | . . . Actions | -11 -10 -10 --------- Run | Scr Mat Min Total 1324 | 31 1217 76 Wait 171 | . 171 . Move 987 | 17 903 67 Hop . | . . . Pick Up 19 | 1 18 . Fast Attach 9 | 2 6 1 Attach 4 | 1 1 2 Detach 2 | 1 1 . Swap 16 | 3 13 . Drop 15 | 2 13 . Fire 94 | 4 86 4 Melee . | . . . Ram . | . . . Kick . | . . . Crush 7 | . 5 2 Escape Stasis . | . . . Rewire . | . . . Trap . | . . . Miscellaneous . | . . . Route ------- -11/Scrapyard -10/Materials (discovered 5 exits: [*Mat x3] / *Min x2) -10/Mines (discovered 1 exit: [Mat]) History --------- Turn | Location | Event 1 | -11/Scrapyard | Discovered new exit (range 3) 45 | -11/Scrapyard | Entered Materials 225 | -10/Materials | Discovered new exit (range 16) 305 | -10/Materials | Build established: Mutant 394 | -10/Materials | Destroyed 7 combat bots 542 | -10/Materials | Discovered new exit (range 14) 586 | -10/Materials | Discovered new exit (range 8) 1073 | -10/Materials | Discovered new exit (range 13) 1288 | -10/Materials | Discovered new exit (range 4) 1599 | -10/Materials | Repaired Ion Engine 1626 | -10/Materials | Repaired Lgt. Treads 2075 | -10/Materials | Entered Mines 2080 | -10/Mines | Discovered new exit (range 17) 2169 | -10/Mines | Assembled infested the area 2186 | -10/Mines | Core integrity fell below 50% 2189 | -10/Mines | Released all parts (6) 2194 | -10/Mines | Core integrity fell below 20% 2199 | -10/Mines | Destroyed by as-05859 with Assembled Rifle Last Messages --------------- Downloaded map data. 02085_ K-01 Serf collects debris. 02103_ Slammed into T-07 Excavator. 02104_ Slammed into K-01 Serf. 02169_ ALERT: Infestation in the mines, dispatching Demolisher response squad. 02183_ Ion Engine destroyed. 02184_ Destroyed Asb. Hover Unit. 02184_ as-88897 destroyed. 02184_ Seismic Survey Station disabled. 02186_ Lgt. Treads destroyed. 02186_ as-27715 shuts down. 02187_ Lgt. Treads destroyed. 02189_ Released Beam Cannon. 02189_ Released Lrg. Storage Unit. 02189_ Released Targeting Computer. 02189_ Released Assault Rifle. 02189_ Released Lgt. Treads. 02189_ as-13842 destroyed. 02190_ Acquired Lgt. Treads. Map ----- +----------------------------------------------------+ | ????????????????????????????????????????? | | ????????????????????????????????????????? | | ????????????????????????????????????????? | | ?????????? ?????????????????????????????? | | ??????????$?????????????????????????????? | | ?????????? ?????????????????????????????? | | ????????## ?????????????????????????????? | | ???????? ?????????????????????????????? | | ???????? ?????????????????????????????? | | ????????# ?????????????????????????????? | | ????????# #????????????????????????????? | | ????###?#% #????????????????????????????? | | ???## ## #????????????????????????????? | | ??## # #????????????????????????????? | | ?## #????????????????????????????? | | ?# a ##???????????????????????????? | | ?# [=##??????????????????????????? | | ??# aa![#??????????????????????????? | | ??# !!]!|#??????????????????????????? | | ???# "!"*a##?????????????????????????? | | ???#### """aaa##????????????????????????? | | ??????# """ a ########?????????????????? | | ??????# a a ##????????????????? | | ?????# aa ##??????????##???? | | ????# ##a ##???????? #???? | | ????# ####@ r ##?????? ###?? | | ????## ##??# #????? ??? | | ?????## ##????## ##???# #???? | | ??????###???????###### #### #????# | | ?????????????????????## #?????# | | ??????????????????????## ##?????# | | ???????????????????????# ############ | | ???????????????????????## #???# | | ????????????????????????### ##### | | ??????????????????????????# ##### | | ??????????????????????????# #???# | | ??????????????????????????###########???# | | ???????????????????????????????????????? | | ???????????????????????????????????????# | | ???????????????????????????????????????## | | ????????????????????????????????????????# | | ????????????????????????????????????????? | | ????????????????????????????????????????? | | ????????????????????????????????????????? | | ????????????????????????????????????????? | | ????????????????????????????????????????? | | ????????????????????????????????????????? | | ????????????????????????????????????????? | | ????????????????????????????????????????? | | ????????????????????????????????????????? | +----------------------------------------------------+ Best States ------------- Heat Dissipation 25 Energy Generation 10 Energy Capacity 250 Matter Stores 300 Matter Capacity 300 Sight Range 16 Terrain Scan Range 16 Terrain Scan Density 10 Evasion (%) 55 Targeting Accuracy 5 Recoil Reduction 2 Item Schematics ----------------- None Robot Schematics ------------------ None Fabricated ------------ Nothing Alien Tech Used ----------------- None Achievements -------------- None Challenges ------------ None Game ------ Seed MagneticVariableRipper Manual? 0 Play Time 00:16:46 Cumulative 355.3 hours Start 2022.03.20 @ 12:33:27 End 2022.03.20 @ 12:49:39 Sessions 1 Manual Loads 0 Difficulty Rogue Special Mode None Game No. 309 Rogue 309 Adventurer 0 Explorer 0 Win Type - Total 6 Types 5/0/1/0/0/0/0/0/0 Lore% 53 Gallery% 73 Achievement% 64 Wizard Run 0 Options --------- ASCII 0 Keyboard 0 Movement Numpad Keybinds 0 Fullscreen 2 Font 18/TerminusBold Map View 76x50 Tactical HUD 1 Map Filters NONE Filters NONE Steam 1 RUN: 4ed5b234-4dec-436d-b471-93f2901044cf